fUSD/lending_fUSD_20250629
["ID","MTS","AMOUNT","RATE_DAILY","PERIOD"]
[368586771,1751217055554,-1013.38,0.00021917,2]
[368586772,1751217055563,-542.59141436,0.00021917,2]
[368586773,1751217055572,-1910.54,0.00021917,2]
[368586774,1751217055581,-490.0,0.00021917,2]
[368586775,1751217055591,-490.0,0.00021917,2]
[368586776,1751217055600,-5452.81,0.00021917,2]
[368586777,1751217055609,-569.11,0.00021917,2]
[368586778,1751217055618,-490.0,0.00021917,2]
[368586779,1751217055626,-490.0,0.00021917,2]
[368586780,1751217055635,-3892.29,0.00021917,2]
[368586781,1751217055645,-490.0,0.00021917,2]
[368586782,1751217055654,-2803.43,0.00021917,2]
[368586783,1751217055663,-1790.76,0.00021917,2]
[368586784,1751217055672,-640.18,0.00021917,2]
[368586785,1751217055681,-1029.24,0.00021917,2]
[368586786,1751217055690,-490.0,0.00021917,2]
[368586787,1751217055699,-490.0,0.00021917,2]
[368586788,1751217055707,-490.0,0.00021917,2]
[368586789,1751217055717,-3068.43,0.00021917,2]
[368586790,1751217055727,-710.69,0.00021917,2]
[368586791,1751217055736,-1638.63,0.00021917,2]
[368586792,1751217055745,-1231.55,0.00021917,2]
[368586793,1751217055754,-490.0,0.00021917,2]
[368586794,1751217055762,-1064.17,0.00021917,2]
[368586795,1751217055772,-1683.24,0.00021917,2]
[368586796,1751217055781,-2870.96,0.00021917,2]
[368586797,1751217055790,-490.0,0.00021917,2]
[368586798,1751217055799,-490.0,0.00021917,2]
[368586799,1751217055808,-2407.18,0.00021917,2]
[368586800,1751217055818,-490.0,0.00021917,2]
[368586801,1751217055829,-490.0,0.00021917,2]
[368586802,1751217055838,-1704.65,0.00021917,2]
[368586803,1751217055848,-2198.66,0.00021917,2]
[368586804,1751217055858,-490.0,0.00021917,2]
[368586805,1751217055867,-490.0,0.00021917,2]
[368586806,1751217055876,-624.0,0.00021917,2]
[368586807,1751217055885,-490.0,0.00021917,2]
[368586808,1751217055894,-490.0,0.00021917,2]
[368586809,1751217055904,-1457.74,0.00021917,2]
[368586810,1751217055913,-3962.35,0.00021917,2]
[368586811,1751217055922,-1306.15,0.00021917,2]
[368586812,1751217055931,-522.65,0.00021917,2]
[368586813,1751217055940,-490.0,0.00021917,2]
[368586814,1751217055949,-1145.59,0.00021917,2]
[368586815,1751217055959,-598.87,0.00021917,2]
[368586816,1751217055968,-6380.22,0.00021917,2]
[368586817,1751217055978,-1919.53,0.00021917,2]
[368586818,1751217055987,-490.0,0.00021917,2]
[368586819,1751217055996,-2531.0,0.00021917,2]
[368586820,1751217056007,-1551.75,0.00021917,2]
[368586821,1751217056016,-490.0,0.00021917,2]
[368586822,1751217056025,-490.0,0.00021917,2]
[368586823,1751217056034,-952.445311,0.00021917,2]
[368586824,1751217056043,-494.28,0.00021917,2]
[368586825,1751217056053,-2561.87,0.00021917,2]
[368586826,1751217056062,-1169.92,0.00021917,2]
[368586827,1751217056071,-490.0,0.00021917,2]
[368586828,1751217056080,-3485.22,0.00021917,2]
[368586829,1751217056090,-4887.69,0.00021917,2]
[368586830,1751217056099,-490.0,0.00021917,2]
[368586831,1751217056109,-490.0,0.00021917,2]
[368586832,1751217056118,-490.0,0.00021917,2]
[368586833,1751217056128,-722.88,0.00021917,2]
[368586834,1751217056138,-3314.25,0.00021917,2]
[368586835,1751217056148,-490.0,0.00021917,2]
[368586836,1751217056157,-490.0,0.00021917,2]
[368586837,1751217056166,-5414.69,0.00021917,2]
[368586838,1751217056176,-4839.98,0.00021917,2]
[368586839,1751217056190,-490.0,0.00021917,2]
[368586840,1751217056203,-490.0,0.00021917,2]
[368586841,1751217056213,-833.86,0.00021917,2]
[368586842,1751217056222,-490.0,0.00021917,2]
[368586843,1751217056231,-2791.8,0.00021917,2]
[368586844,1751217056242,-372.11883628,0.00021917,2]
[368586845,1751217056251,-3101.21,0.00021917,2]
[368586846,1751217056261,-490.0,0.00021917,2]
[368586847,1751217056270,-13534.32,0.00021917,2]
[368586848,1751217056279,-490.0,0.00021917,2]
[368586849,1751217056288,-490.0,0.00021917,2]
[368586850,1751217056297,-490.0,0.00021917,2]
[368586851,1751217056306,-490.0,0.00021917,2]
[368586852,1751217056315,-490.0,0.00021917,2]
[368586853,1751217056324,-490.0,0.00021917,2]
[368586854,1751217056333,-974.38,0.00021917,2]
[368586855,1751217056342,-490.0,0.00021917,2]
[368586856,1751217056352,-490.0,0.00021917,2]
[368586857,1751217056361,-490.0,0.00021917,2]
[368586858,1751217056370,-1790.39,0.00021917,2]
[368586859,1751217056380,-490.0,0.00021917,2]
[368586860,1751217056389,-3320.47,0.00021917,2]
[368586861,1751217056398,-6828.18,0.00021917,2]
[368586862,1751217056407,-490.0,0.00021917,2]
[368586863,1751217056416,-3417.99,0.00021917,2]
[368586864,1751217056425,-4572.03,0.00021917,2]
[368586865,1751217056435,-490.0,0.00021917,2]
[368586866,1751217056444,-720.796603,0.00021917,2]
[368586867,1751217056453,-490.0,0.00021917,2]
[368586868,1751217056462,-490.0,0.00021917,2]
[368586869,1751217056472,-490.0,0.00021917,2]
[368586870,1751217056481,-490.0,0.00021917,2]
[368586871,1751217056490,-490.0,0.00021917,2]
[368586872,1751217056499,-546.85,0.00021917,2]
[368586873,1751217056508,-490.0,0.00021917,2]
[368586874,1751217056517,-1034.94,0.00021917,2]
[368586875,1751217056526,-1630.45,0.00021917,2]
[368586876,1751217056535,-1055.67,0.00021917,2]
[368586877,1751217056544,-629.72,0.00021917,2]
[368586878,1751217056553,-4323.9,0.00021917,2]
[368586879,1751217056562,-2714.71,0.00021917,2]
[368586880,1751217056571,-490.0,0.00021917,2]
[368586881,1751217056580,-2199.43,0.00021917,2]
[368586882,1751217056589,-490.0,0.00021917,2]
[368586883,1751217056599,-490.0,0.00021917,2]
[368586884,1751217056608,-490.0,0.00021917,2]
[368586885,1751217056617,-1000.17,0.00021917,2]
[368586886,1751217056627,-501.98,0.00021917,2]
[368586887,1751217056636,-490.0,0.00021917,2]
[368586888,1751217056646,-1505.87,0.00021917,2]
[368586889,1751217056657,-2529.19,0.00021917,2]
[368586890,1751217056667,-490.0,0.00021917,2]
[368586891,1751217056676,-490.0,0.00021917,2]
[368586892,1751217056686,-786.48,0.00021917,2]
[368586893,1751217056695,-490.0,0.00021917,2]
[368586894,1751217056704,-674.48,0.00021917,2]
[368586895,1751217056714,-2593.78,0.00021917,2]
[368586896,1751217056723,-490.0,0.00021917,2]
[368586897,1751217056732,-490.0,0.00021917,2]
[368586898,1751217056742,-523.96,0.00021917,2]
[368586899,1751217056751,-1812.76,0.00021917,2]
[368586900,1751217056760,-6417.36,0.00021917,2]
[368586901,1751217056770,-19305.7,0.00021917,2]
[368586902,1751217056779,-490.0,0.00021917,2]
[368586903,1751217056788,-2707.51,0.00021917,2]
[368586904,1751217056798,-490.0,0.00021917,2]
[368586905,1751217056807,-490.0,0.00021917,2]
[368586906,1751217056816,-903.9,0.00021917,2]
[368586907,1751217056826,-2371.28,0.00021917,2]
[368586908,1751217056835,-1223.58,0.00021917,2]
[368586909,1751217056844,-1206.17,0.00021917,2]
[368586910,1751217056854,-1605.88,0.00021917,2]
[368586911,1751217056863,-706.3,0.00021917,2]
[368586912,1751217056873,-569.300795,0.00021917,2]
[368586913,1751217056883,-1134.53,0.00021917,2]
[368586914,1751217056893,-490.0,0.00021917,2]
[368586915,1751217056903,-24364.23,0.00021917,2]
[368586916,1751217056913,-490.0,0.00021917,2]
[368586917,1751217056922,-490.0,0.00021917,2]
[368586918,1751217056932,-3530.44,0.00021917,2]
[368586919,1751217056941,-2702.02,0.00021917,2]
[368586920,1751217056951,-4873.8,0.00021917,2]
[368586921,1751217056960,-490.0,0.00021917,2]
[368586922,1751217056970,-1272.12,0.00021917,2]
[368586923,1751217056980,-8867.19,0.00021917,2]
[368586924,1751217056989,-33841.37,0.00021917,2]
[368586925,1751217056999,-1151.32,0.00021917,2]
[368586926,1751217057009,-520.60775019,0.00021917,2]
[368586927,1751217057018,-2010.49,0.00021917,2]
[368586928,1751217057028,-2100.18,0.00021917,2]
[368586929,1751217057037,-490.0,0.00021917,2]
[368586930,1751217057047,-490.0,0.00021917,2]
[368586931,1751217057056,-490.0,0.00021917,2]
[368586932,1751217057066,-490.0,0.00021917,2]
[368586933,1751217057075,-2424.25,0.00021917,2]
[368586934,1751217057085,-524.94,0.00021917,2]
[368586935,1751217057095,-2634.17,0.00021917,2]
[368586936,1751217057105,-490.0,0.00021917,2]
[368586937,1751217057116,-546.98,0.00021917,2]
[368586938,1751217057126,-2594.47,0.00021917,2]
[368586939,1751217057136,-490.0,0.00021917,2]
[368586940,1751217057145,-2900.75,0.00021917,2]
[368586941,1751217057155,-490.0,0.00021917,2]
[368586942,1751217057165,-2996.83,0.00021917,2]
[368586943,1751217057176,-2878.08,0.00021917,2]
[368586944,1751217057190,-490.0,0.00021917,2]
[368586945,1751217057200,-2424.17,0.00021917,2]
[368586946,1751217057210,-1580.86,0.00021917,2]
[368586947,1751217057220,-430.01165356,0.00021917,2]
[368586948,1751217057231,-490.0,0.00021917,2]
[368586949,1751217057241,-490.0,0.00021917,2]
[368586950,1751217057251,-5748.83,0.00021917,2]
[368586951,1751217057261,-623.38,0.00021917,2]
[368586952,1751217057273,-1630.71,0.00021917,2]
[368586953,1751217057284,-490.0,0.00021917,2]
[368586954,1751217057295,-490.0,0.00021917,2]
[368586955,1751217057307,-472.626834,0.00021917,2]
[368586956,1751217057316,-1280.09,0.00021917,2]
[368586957,1751217057325,-490.0,0.00021917,2]
[368586958,1751217057335,-150.0,0.00021917,2]
[368586959,1751217057344,-490.0,0.00021917,2]
[368586960,1751217057354,-490.0,0.00021917,2]
[368586961,1751217057363,-490.0,0.00021917,2]
[368586962,1751217057373,-513.74368128,0.00021917,2]
[368586963,1751217057383,-490.0,0.00021917,2]
[368586964,1751217057392,-2930.26,0.00021917,2]
[368586965,1751217057402,-772.27,0.00021917,2]
[368586966,1751217057411,-2716.59,0.00021917,2]
[368586967,1751217057421,-490.0,0.00021917,2]
[368586968,1751217057430,-1549.54,0.00021917,2]
[368586969,1751217057441,-2544.11,0.00021917,2]
[368586970,1751217057451,-2651.29,0.00021917,2]
[368586971,1751217057462,-490.0,0.00021917,2]
[368586972,1751217057472,-490.0,0.00021917,2]
[368586973,1751217057481,-547.59,0.00021917,2]
[368586974,1751217057491,-493.32490657,0.00021917,2]
[368586975,1751217057500,-5623.71,0.00021917,2]
[368586976,1751217057510,-910.27,0.00021917,2]
[368586977,1751217057519,-8215.91,0.00021917,2]
[368586978,1751217057529,-572.65,0.00021917,2]
[368586979,1751217057539,-490.0,0.00021917,2]
[368586980,1751217057550,-490.0,0.00021917,2]
[368586981,1751217057559,-5784.43,0.00021917,2]
[368586982,1751217057570,-832.91,0.00021917,2]
[368586983,1751217057580,-5835.66,0.00021917,2]
[368586984,1751217057590,-495.46273633,0.00021917,2]
[368586985,1751217057600,-490.0,0.00021917,2]
[368586986,1751217057609,-490.0,0.00021917,2]
[368586987,1751217057619,-2733.55,0.00021917,2]
[368586988,1751217057630,-2637.84,0.00021917,2]
[368586989,1751217057639,-730.03,0.00021917,2]
[368586990,1751217057649,-1118.33,0.00021917,2]
[368586991,1751217057659,-3300.08,0.00021917,2]
[368586992,1751217057669,-522.31,0.00021917,2]
[368586993,1751217057679,-881.96,0.00021917,2]
[368586994,1751217057688,-2066.42,0.00021917,2]
[368586995,1751217057698,-490.0,0.00021917,2]
[368586996,1751217057708,-3502.76,0.00021917,2]
[368586997,1751217057718,-1122.23,0.00021917,2]
[368586998,1751217057728,-3329.94,0.00021917,2]
[368586999,1751217057738,-1335.42,0.00021917,2]
[368587000,1751217057748,-600.48,0.00021917,2]
[368587001,1751217057758,-2571.94,0.00021917,2]
[368587002,1751217057768,-509.024834,0.00021917,2]
[368587003,1751217057778,-3909.36,0.00021917,2]
[368587004,1751217057788,-490.0,0.00021917,2]
[368587005,1751217057798,-490.0,0.00021917,2]
[368587006,1751217057807,-490.0,0.00021917,2]
[368587007,1751217057817,-490.0,0.00021917,2]
[368587008,1751217057827,-490.0,0.00021917,2]
[368587009,1751217057837,-2707.89,0.00021917,2]
[368587010,1751217057847,-492.1267749,0.00021917,2]
[368587011,1751217057857,-2010.38,0.00021917,2]
[368587012,1751217057867,-490.0,0.00021917,2]
[368587013,1751217057878,-615.65,0.00021917,2]
[368587014,1751217057888,-2226.07,0.00021917,2]
[368587015,1751217057898,-150.0,0.00021917,2]
[368587016,1751217057907,-2022.04,0.00021917,2]
[368587017,1751217057917,-490.0,0.00021917,2]
[368587018,1751217057927,-18486.15,0.00021917,2]
[368587019,1751217057937,-2826.43,0.00021917,2]
[368587020,1751217057947,-3518.25,0.00021917,2]
[368587021,1751217057957,-2485.56,0.00021917,2]
[368587022,1751217057966,-490.0,0.00021917,2]
[368587023,1751217057976,-490.0,0.00021917,2]
[368587024,1751217057986,-490.0,0.00021917,2]
[368587025,1751217057995,-3032.75,0.00021917,2]
[368587026,1751217058005,-717.66,0.00021917,2]
[368587027,1751217058015,-490.0,0.00021917,2]
[368587028,1751217058024,-490.0,0.00021917,2]
[368587029,1751217058034,-2697.88,0.00021917,2]
[368587030,1751217058044,-1186.18,0.00021917,2]
[368587031,1751217058053,-501.55015801,0.00021917,2]
[368587032,1751217058064,-465.5361354,0.00021917,2]
[368587033,1751217058074,-2771.27,0.00021917,2]
[368587034,1751217058083,-742.97,0.00021917,2]
[368587035,1751217058093,-3129.67,0.00021917,2]
[368587036,1751217058103,-490.0,0.00021917,2]
[368587037,1751217058113,-490.0,0.00021917,2]
[368587038,1751217058123,-490.0,0.00021917,2]
[368587039,1751217058134,-3437.9,0.00021917,2]
[368587040,1751217058144,-490.0,0.00021917,2]
[368587041,1751217058153,-1205.29,0.00021917,2]
[368587042,1751217058163,-490.0,0.00021917,2]
[368587043,1751217058173,-490.0,0.00021917,2]
[368587044,1751217058182,-500.0,0.00021917,2]
[368587045,1751217058195,-423.27804552,0.00021917,2]
[368587046,1751217058204,-490.0,0.00021917,2]
[368587047,1751217058213,-1571.71,0.00021917,2]
[368587048,1751217058223,-4499.04,0.00021917,2]
[368587049,1751217058233,-993.57,0.00021917,2]
[368587050,1751217058243,-490.0,0.00021917,2]
[368587051,1751217058252,-490.0,0.00021917,2]
[368587052,1751217058263,-2138.66,0.00021917,2]
[368587053,1751217058272,-2552.79,0.00021917,2]
[368587054,1751217058281,-1434.0,0.00021917,2]
[368587055,1751217058292,-490.0,0.00021917,2]
[368587056,1751217058301,-490.0,0.00021917,2]
[368587057,1751217058310,-2647.68,0.00021917,2]
[368587058,1751217058320,-1680.44,0.00021917,2]
[368587059,1751217058329,-490.0,0.00021917,2]
[368587060,1751217058339,-1000.0,0.00021917,2]
[368587061,1751217058349,-490.0,0.00021917,2]
[368587062,1751217058358,-1420.9,0.00021917,2]
[368587063,1751217058367,-492.45,0.00021917,2]
[368587064,1751217058377,-822.61,0.00021917,2]
[368587065,1751217058386,-490.0,0.00021917,2]
[368587066,1751217058395,-258.74733659,0.00021917,2]
[368587067,1751217058405,-497.90322694,0.00021917,2]
[368587068,1751217058414,-490.0,0.00021917,2]
[368587069,1751217058424,-1796.76,0.00021917,2]
[368587070,1751217058433,-3511.07,0.00021917,2]
[368587071,1751217058442,-2314.0,0.00021917,2]
[368587072,1751217058452,-490.0,0.00021917,2]
[368587073,1751217058462,-500.62,0.00021917,2]
[368587074,1751217058471,-490.0,0.00021917,2]
[368587075,1751217058480,-490.0,0.00021917,2]
[368587076,1751217058489,-4513.47,0.00021917,2]
[368587077,1751217058499,-490.0,0.00021917,2]
[368587078,1751217058508,-490.0,0.00021917,2]
[368587079,1751217058517,-2505.38,0.00021917,2]
[368587080,1751217058526,-4054.12,0.00021917,2]
[368587081,1751217058535,-1936.9,0.00021917,2]
[368587082,1751217058544,-490.0,0.00021917,2]
[368587083,1751217058554,-1002.16,0.00021917,2]
[368587084,1751217058563,-490.0,0.00021917,2]
[368587085,1751217058573,-2899.63,0.00021917,2]
[368587086,1751217058582,-15244.81,0.00021917,2]
[368587087,1751217058591,-490.0,0.00021917,2]
[368587088,1751217058600,-560.04,0.00021917,2]
[368587089,1751217058610,-2342.6,0.00021917,2]
[368587090,1751217058620,-4514.68,0.00021917,2]
[368587091,1751217058631,-994.89,0.00021917,2]
[368587092,1751217058642,-2203.5,0.00021917,2]
[368587093,1751217058652,-490.0,0.00021917,2]
[368587094,1751217058661,-490.0,0.00021917,2]
[368587095,1751217058672,-677.47,0.00021917,2]
[368587096,1751217058682,-490.0,0.00021917,2]
[368587097,1751217058692,-4348.63,0.00021917,2]
[368587098,1751217058702,-1376.07,0.00021917,2]
[368587099,1751217058713,-490.0,0.00021917,2]
[368587100,1751217058724,-999.2,0.00021917,2]
[368587101,1751217058735,-551.08,0.00021917,2]
[368587102,1751217058745,-490.0,0.00021917,2]
[368587103,1751217058756,-1374.88,0.00021917,2]
[368587104,1751217058766,-490.0,0.00021917,2]
[368587105,1751217058776,-490.0,0.00021917,2]
[368587106,1751217058786,-4787.33,0.00021917,2]
[368587107,1751217058798,-1125.2,0.00021917,2]
[368587108,1751217058808,-700.870762,0.00021917,2]
[368587109,1751217059133,-8760.59,0.00021917,2]
[368587110,1751217059147,-1687.89,0.00021917,2]
[368587111,1751217059158,-2599.18,0.00021917,2]
[368587112,1751217059167,-490.0,0.00021917,2]
[368587113,1751217059177,-490.0,0.00021917,2]
[368587114,1751217059189,-1731.63,0.00021917,2]
[368587115,1751217059198,-490.0,0.00021917,2]
[368587116,1751217059208,-490.0,0.00021917,2]
[368587117,1751217059217,-490.0,0.00021917,2]
[368587118,1751217059227,-490.0,0.00021917,2]
[368587119,1751217059239,-490.0,0.00021917,2]
[368587120,1751217059250,-1910.36,0.00021917,2]
[368587121,1751217059260,-490.0,0.00021917,2]
[368587122,1751217059270,-490.0,0.00021917,2]
[368587123,1751217059281,-4327.05,0.00021917,2]
[368587124,1751217059290,-857.31,0.00021917,2]
[368587125,1751217059299,-1536.49,0.00021917,2]
[368587126,1751217059308,-490.0,0.00021917,2]
[368587127,1751217059318,-6108.72,0.00021917,2]
[368587128,1751217059331,-490.0,0.00021917,2]
[368587129,1751217059341,-490.0,0.00021917,2]
[368587130,1751217059350,-6554.41,0.00021917,2]
[368587131,1751217059360,-3075.51,0.00021917,2]
[368587132,1751217059370,-1320.94,0.00021917,2]
[368587133,1751217059379,-490.0,0.00021917,2]
[368587134,1751217059389,-492.01,0.00021917,2]
[368587135,1751217059398,-9066.11,0.00021917,2]
[368587136,1751217059408,-3514.9,0.00021917,2]
[368587137,1751217059418,-493.32020711,0.00021917,2]
[368587138,1751217059427,-490.0,0.00021917,2]
[368587139,1751217059438,-490.0,0.00021917,2]
[368587140,1751217059447,-490.0,0.00021917,2]
[368587141,1751217059457,-1778.4,0.00021917,2]
[368587142,1751217059467,-490.0,0.00021917,2]
[368587143,1751217059476,-494.37903915,0.00021917,2]
[368587144,1751217059486,-2606.03,0.00021917,2]
[368587145,1751217059496,-1709.91,0.00021917,2]
[368587146,1751217059506,-500.0,0.00021917,2]
[368587147,1751217059516,-500.0,0.00021917,2]
[368587148,1751217059526,-10941.21,0.00021917,2]
[368587149,1751217059535,-1876.3,0.00021917,2]
[368587150,1751217059545,-500.0,0.00021917,2]
[368587151,1751217059555,-500.0,0.00021917,2]
[368587152,1751217059565,-500.0,0.00021917,2]
[368587153,1751217059576,-500.0,0.00021917,2]
[368587154,1751217059586,-490.0,0.00021917,2]
[368587155,1751217059595,-500.0,0.00021917,2]
[368587156,1751217059605,-500.0,0.00021917,2]
[368587157,1751217059615,-590.96,0.00021917,2]
[368587158,1751217059626,-500.0,0.00021917,2]
[368587159,1751217059636,-276.56,0.00021917,2]
[368587160,1751217059647,-490.0,0.00021917,2]
[368587161,1751217059658,-1220.44,0.00021917,2]
[368587162,1751217059668,-490.0,0.00021917,2]
[368587163,1751217059678,-490.0,0.00021917,2]
[368587164,1751217059688,-2091.71,0.00021917,2]
[368587165,1751217059698,-5396.17,0.00021917,2]
[368587166,1751217059708,-1003.324876,0.00021917,2]
[368587167,1751217059718,-490.0,0.00021917,2]
[368587168,1751217059727,-490.0,0.00021917,2]
[368587169,1751217059738,-1182.83,0.00021917,2]
[368587170,1751217059747,-490.0,0.00021917,2]
[368587171,1751217059757,-2321.97,0.00021917,2]
[368587172,1751217059768,-2658.88,0.00021917,2]
[368587173,1751217059777,-1819.34,0.00021917,2]
[368587174,1751217059787,-9157.51,0.00021917,2]
[368587175,1751217059796,-490.0,0.00021917,2]
[368587176,1751217059806,-490.0,0.00021917,2]
[368587177,1751217059818,-365.48363986,0.00021917,2]
[368587178,1751217059827,-2152.88,0.00021917,2]
[368587179,1751217059837,-490.0,0.00021917,2]
[368587180,1751217059847,-772.71,0.00021917,2]
[368587181,1751217059857,-490.0,0.00021917,2]
[368587182,1751217059866,-490.0,0.00021917,2]
[368587183,1751217059876,-49998.3,0.00021917,2]
[368587184,1751217059886,-490.0,0.00021917,2]
[368587185,1751217059896,-5807.78,0.00021917,2]
[368587186,1751217059906,-490.0,0.00021917,2]
[368587187,1751217059915,-557.63,0.00021917,2]
[368587188,1751217059926,-1129.39,0.00021917,2]
[368587189,1751217059936,-4249.88,0.00021917,2]
[368587190,1751217059946,-589.65,0.00021917,2]
[368587191,1751217059955,-490.0,0.00021917,2]
[368587192,1751217059965,-539.57,0.00021917,2]
[368587193,1751217059975,-570.95,0.00021917,2]
[368587194,1751217059984,-663.08,0.00021917,2]
[368587195,1751217059994,-490.0,0.00021917,2]
[368587196,1751217060003,-490.0,0.00021917,2]
[368587197,1751217060013,-490.0,0.00021917,2]
[368587198,1751217060023,-1292.7,0.00021917,2]
[368587199,1751217060033,-490.0,0.00021917,2]
[368587200,1751217060043,-365.23734796,0.00021917,2]
[368587201,1751217060053,-3595.36,0.00021917,2]
[368587202,1751217060064,-490.0,0.00021917,2]
[368587203,1751217060075,-1663.74,0.00021917,2]
[368587204,1751217060085,-1882.22,0.00021917,2]
[368587205,1751217060094,-490.0,0.00021917,2]
[368587206,1751217060104,-2703.75,0.00021917,2]
[368587207,1751217060114,-25215.36,0.00021917,2]
[368587208,1751217060124,-490.0,0.00021917,2]
[368587209,1751217060135,-490.0,0.00021917,2]
[368587210,1751217060145,-778.87,0.00021917,2]
[368587211,1751217060154,-778.87,0.00021917,2]
[368587212,1751217060164,-490.0,0.00021917,2]
[368587213,1751217060174,-9743.61,0.00021917,2]
[368587214,1751217060186,-1467.763463,0.00021917,2]
[368587215,1751217060197,-3173.91,0.00021917,2]
[368587216,1751217060207,-490.0,0.00021917,2]
[368587217,1751217060217,-3217.56,0.00021917,2]
[368587218,1751217060227,-490.0,0.00021917,2]
[368587219,1751217060237,-2753.45,0.00021917,2]
[368587220,1751217060246,-2551.08,0.00021917,2]
[368587221,1751217060257,-490.0,0.00021917,2]
[368587222,1751217060267,-490.0,0.00021917,2]
[368587223,1751217060278,-501.48555712,0.00021917,2]
[368587224,1751217060288,-490.0,0.00021917,2]
[368587225,1751217060299,-490.0,0.00021917,2]
[368587226,1751217060309,-10318.98,0.00021917,2]
[368587227,1751217060319,-570.04,0.00021917,2]
[368587228,1751217060330,-570.04,0.00021917,2]
[368587229,1751217060340,-570.04,0.00021917,2]
[368587230,1751217060349,-570.04,0.00021917,2]
[368587231,1751217060359,-2911.2,0.00021917,2]
[368587232,1751217060370,-570.04,0.00021917,2]
[368587233,1751217060379,-570.04,0.00021917,2]
[368587234,1751217060388,-570.04,0.00021917,2]
[368587235,1751217060398,-3494.58,0.00021917,2]
[368587236,1751217060408,-1953.62,0.00021917,2]
[368587237,1751217060417,-200.0,0.00021918,7]
[368587238,1751217060426,-299.1996,0.00021918,7]
[368587239,1751217060436,-622.57918819,0.00021918,2]
[368587240,1751217060447,-151.0,0.00021919,7]
[368587241,1751217060456,-2500.0,0.00021924,2]
[368587242,1751217060466,-1634.67559321,0.00021925,2]
[368587243,1751217060475,-1277.72187072,0.00021925,2]
[368587244,1751217060486,-500.0,0.00021931,2]
[368587245,1751217060497,-500.0,0.00021932,2]
[368587246,1751217060506,-850.27,0.00021932,2]
[368587247,1751217060516,-2301.70000843,0.00021934,6]
[368587248,1751217060526,-534.62262188,0.00021973,2]
[368587249,1751217060535,-440.16588761,0.00021973,2]
[368587250,1751217060545,-498.58718076,0.00021973,2]
[368587251,1751217060555,-510.11779806,0.00021973,2]
[368587252,1751217060564,-536.83959098,0.00021973,2]
[368587254,1751217060574,-500.0,0.00021973,2]
[368587255,1751217060584,-500.0,0.00021973,2]
[368587256,1751217060594,-500.0,0.00021973,2]
[368587257,1751217060604,-500.0,0.00021973,2]
[368587258,1751217060614,-500.0,0.00021973,2]
[368587259,1751217060623,-502.20077747,0.00021973,2]
[368587260,1751217060634,-500.0,0.00021973,2]
[368587261,1751217060644,-500.0,0.00021973,2]
[368587262,1751217060654,-367.56458119,0.00021973,2]
[368587263,1751217060665,-500.0,0.00021973,2]
[368587264,1751217060677,-1634.67559321,0.00021988,2]
[368587265,1751217060686,-150.0,0.00021988,2]
[368587266,1751217060696,-150.0,0.00021988,2]
[368587267,1751217060705,-202.132168,0.00021988,2]
[368587268,1751217060714,-553.38515235,0.00021988,2]
[368587269,1751217060723,-500.0,0.00021988,2]
[368587270,1751217060733,-200.48377205,0.00021988,2]
[368587271,1751217060742,-500.0,0.00021988,2]